{"text_format":"1","workbook":"xlsx","n_sheets":2,"sheets":["One-Player Mode","Support info & formulas"],"not_rendered":{"charts":0,"images":1,"macros":1,"external_links":0,"defined_names":8,"comments":0,"pivot_tables":0},"unopened":[],"bounds":{"document_bytes":16777216,"sheet_cells":100000,"rows_first":2000,"rows_last":500,"rows_between":2000,"halvings":0,"cell_chars":16384,"cell_head_chars":4096},"cells_cut":0,"cells_raw":0,"read":"whole","date_system":"1900"}

{"sheet":"One-Player Mode","index":0,"n_rows":24,"n_cols":17,"rows_kept":24,"cut":false,"hidden":false,"merged":[[11,7,11,11],[11,12,11,16],[10,7,10,16],[11,3,11,6],[1,1,1,16],[6,7,6,12],[4,1,4,16],[8,3,8,6],[2,1,2,16],[3,1,3,16]]}
[null,"GUESS THE NUMBER GAME (One-Player Mode) - 2023-01-21"]
[null,"1. Click on \"New game!\". Your goal is to guess the secret number."]
[null,"2. Insert 4 DIFFERENT digits under \"My guesses\", one digit for each cell. The first guess is always random, so no worries."]
[null,"3. See how many & what type of matches your guess has. If the secret number is 3457 and your guess is 4327, you will be shown that you have 1 digit in the right position (because the 7 on the fourth position of your guess is in the secret number and in that same position), and 2 digits on a different position (because the 4 in the first position and the 3 in the second position of your guess are in the secret number but not on those positions)."]
[null,"4. Repeat steps 2 and 3 to guess the secret number in the least amount of turns (maximum is 12). Use logic and trial and error."]
[]
[null,null,null,null,null,null,null,"Digits on…"]
[null,null,null,1,2,3,4]
[null,null,null,"Secret number"]
[null,null,null,{"$f":"INDEX(\n     Columns_Availables_Numbers,\n     MATCH(\n        RANDBETWEEN(\n           1,\n           MAX('Support info & formulas'!D5:D14)),\n        'Support info & formulas'!D5:D14,\n        0),\n     'One-Player Mode'!D8)","v":1},{"$f":"INDEX(\n     'Support info & formulas'!$I$5:$L$14,\n     MATCH(\n        RANDBETWEEN(1,MAX('Support info & formulas'!E5:E14)),\n        'Support info & formulas'!E5:E14,\n        0),\n     'One-Player Mode'!E8)","v":3},{"$f":"INDEX(\n     'Support info & formulas'!$I$5:$L$14,\n     MATCH(\n        RANDBETWEEN(1,MAX('Support info & formulas'!F5:F14)),\n        'Support info & formulas'!F5:F14,\n        0),\n     'One-Player Mode'!F8)","v":5},{"$f":"INDEX(\n     'Support info & formulas'!$I$5:$L$14,\n     MATCH(\n        RANDBETWEEN(1,MAX('Support info & formulas'!G5:G14)),\n        'Support info & formulas'!G5:G14,\n        0),\n     'One-Player Mode'!G8)","v":7}]
[null,null,null,6,4,8,7]
[null,null,"Turn","My Guesses",null,null,null,"The right position",null,null,null,null,"A different position"]
[null,{"$f":"IF(\n     OR(D13=\"\",E13=\"\",F13=\"\",G13=\"\"),\n     Enter_Number_Message,\n     IF(\n        OR(D13=E13,D13=F13,D13=G13,E13=F13,E13=G13,F13=G13),\n        All_Digits_Different_Message,\n        IF(\n           H13=4,\n           Found_It_Fast_Message,\n           \"\")))","v":""},1,1,2,3,4,{"$f":"IF(\n     AND(D13<>\"\",E13<>\"\",F13<>\"\",G13<>\"\"),\n     IF(\n        AND(D13<>E13,D13<>F13,D13<>G13,E13<>F13,E13<>G13,F13<>G13),\n        SUM(I13:L13),\n        \"\"),\n     \"\")","v":0},{"$f":"IF(D13=D$11,1,0)","v":0},{"$f":"IF(E13=E$11,1,0)","v":0},{"$f":"IF(F13=F$11,1,0)","v":0},{"$f":"IF(G13=G$11,1,0)","v":0},{"$f":"IF(\n     AND(D13<>\"\",E13<>\"\",F13<>\"\",G13<>\"\"), IF(\nAND(\nD13<>E13,\nD13<>F13,\nD13<>G13,\nE13<>F13,\nE13<>G13,\nF13<>G13),\nSUM(N13:Q13),\"\"),\"\")","v":1},{"$f":"IF(D13=$E$11,1,\n     IF(D13=$F$11,1,\n        IF(D13=$G$11,1,0)))","v":0},{"$f":"IF(E13=$D$11,1,\n     IF(E13=$F$11,1,\n        IF(E13=$G$11,1,0)))","v":0},{"$f":"IF(F13=$E$11,1,\n     IF(F13=$D$11,1,\n        IF(F13=$G$11,1,0)))","v":0},{"$f":"IF(G13=$E$11,1,\n     IF(G13=$F$11,1,\n        IF(G13=$D$11,1,0)))","v":1}]
[null,{"$f":"IF(\n     OR(H13=4,H13=\"\",H13=\"\"),\n     \"\",\n     IF(\n        OR(D14=\"\",E14=\"\",F14=\"\",G14=\"\"),\n        IF(\n           SUM('One-Player Mode'!H13,'One-Player Mode'!M13)=0,\n           No_Matches_Message,\n           IF(\n              SUM(H13,M13)>=3,\n              Got_Many_Matches_Message,\n              IF(\n                 SUM(H13,M13)<3,\n                 Got_Some_Matches_Message,\n                 Enter_Number_Message))),\n        IF(\n           OR(D14=E14,D14=F14,D14=G14,E14=F14,E14=G14,F14=G14),\n           All_Digits_Different_Message,\n           IF(\n              H14=4,\n              Found_It_Fast_Message,\n              \"\"))))","v":""},2,5,6,7,8,{"$f":"IF(\n     AND(D14<>\"\",E14<>\"\",F14<>\"\",G14<>\"\",H13<>4,H13<>\"\"),\n     IF(\n        AND(D14<>E14,D14<>F14,D14<>G14,E14<>F14,E14<>G14,F14<>G14),\n        SUM(I14:L14),\n        \"\"),\n     \"\")","v":0},{"$f":"IF(D14=D$11,1,0)","v":0},{"$f":"IF(E14=E$11,1,0)","v":0},{"$f":"IF(F14=F$11,1,0)","v":0},{"$f":"IF(G14=G$11,1,0)","v":0},{"$f":"IF(\n     AND(D14<>\"\",E14<>\"\",F14<>\"\",G14<>\"\",H14<>\"\",M13<>\"\"),\n     IF(\n        AND(D14<>E14,D14<>F14,D14<>G14,E14<>F14,E14<>G14,F14<>G14),\n        SUM(N14:Q14),\n        \"\"),\n     \"\")","v":3},0,1,1,1]
[null,{"$f":"IF(\n     OR(H14=4,H14=\"\",H14=\"\"),\n     \"\",\n     IF(\n        OR(D15=\"\",E15=\"\",F15=\"\",G15=\"\"),\n        IF(\n           SUM('One-Player Mode'!H14,'One-Player Mode'!M14)=0,\n           No_Matches_Message,\n           IF(\n              SUM(H14,M14)>=3,\n              Got_Many_Matches_Message,\n              IF(\n                 SUM(H14,M14)<3,\n                 Got_Some_Matches_Message,\n                 Enter_Number_Message))),\n        IF(\n           OR(D15=E15,D15=F15,D15=G15,E15=F15,E15=G15,F15=G15),\n           All_Digits_Different_Message,\n           IF(\n              H15=4,\n              Found_It_Fast_Message,\n              \"\"))))","v":""},3,2,6,7,8,{"$f":"IF(\n     AND(D15<>\"\",E15<>\"\",F15<>\"\",G15<>\"\",H14<>4,H14<>\"\"),\n     IF(\n        AND(D15<>E15,D15<>F15,D15<>G15,E15<>F15,E15<>G15,F15<>G15),\n        SUM(I15:L15),\n        \"\"),\n     \"\")","v":0},0,0,0,0,{"$f":"IF(\n     AND(D15<>\"\",E15<>\"\",F15<>\"\",G15<>\"\",H15<>\"\",M14<>\"\"),\n     IF(\n        AND(D15<>E15,D15<>F15,D15<>G15,E15<>F15,E15<>G15,F15<>G15),\n        SUM(N15:Q15),\n        \"\"),\n     \"\")","v":3},0,1,1,1]
[null,{"$f":"IF(\n     OR(H15=4,H15=\"\",H15=\"\"),\n     \"\",\n     IF(\n        OR(D16=\"\",E16=\"\",F16=\"\",G16=\"\"),\n        IF(\n           SUM('One-Player Mode'!H15,'One-Player Mode'!M15)=0,\n           No_Matches_Message,\n           IF(\n              SUM(H15,M15)>=3,\n              Got_Many_Matches_Message,\n              IF(\n                 SUM(H15,M15)<3,\n                 Got_Some_Matches_Message,\n                 Enter_Number_Message))),\n        IF(\n           OR(D16=E16,D16=F16,D16=G16,E16=F16,E16=G16,F16=G16),\n           All_Digits_Different_Message,\n           IF(\n              H16=4,\n              Found_It_Fast_Message,\n              \"\"))))","v":"You are so close! Keep going!➡"},4,null,null,null,null,"",0,0,0,0,"",0,0,0,0]
[null,{"$f":"IF(\n     OR(H16=4,H16=\"\",H16=\"\"),\n     \"\",\n     IF(\n        OR(D17=\"\",E17=\"\",F17=\"\",G17=\"\"),\n        IF(\n           SUM('One-Player Mode'!H16,'One-Player Mode'!M16)=0,\n           No_Matches_Message,\n           IF(\n              SUM(H16,M16)>=3,\n              Got_Many_Matches_Message,\n              IF(\n                 SUM(H16,M16)<3,\n                 Got_Some_Matches_Message,\n                 Enter_Number_Message))),\n        IF(\n           OR(D17=E17,D17=F17,D17=G17,E17=F17,E17=G17,F17=G17),\n           All_Digits_Different_Message,\n           IF(\n              H17=4,\n              Found_It_Fast_Message,\n              \"\"))))","v":""},5,null,null,null,null,"",0,0,0,0,"",0,0,0,0]
[null,{"$f":"IF(\n     OR(H17=4,H17=\"\",H17=\"\"),\n     \"\",\n     IF(\n        OR(D18=\"\",E18=\"\",F18=\"\",G18=\"\"),\n        IF(\n           SUM('One-Player Mode'!H17,'One-Player Mode'!M17)=0,\n           No_Matches_Message,\n           IF(\n              SUM(H17,M17)>=3,\n              Got_Many_Matches_Message,\n              IF(\n                 SUM(H17,M17)<3,\n                 Got_Some_Matches_Message,\n                 Enter_Number_Message))),\n        IF(\n           OR(D18=E18,D18=F18,D18=G18,E18=F18,E18=G18,F18=G18),\n           All_Digits_Different_Message,\n           IF(\n              H18=4,\n              Found_It_Regular_Speed_Message,\n              \"\"))))","v":""},6,null,null,null,null,"",0,0,0,0,"",0,0,0,0]
[null,{"$f":"IF(\n     OR(H18=4,H18=\"\",H18=\"\"),\n     \"\",\n     IF(\n        OR(D19=\"\",E19=\"\",F19=\"\",G19=\"\"),\n        IF(\n           SUM('One-Player Mode'!H18,'One-Player Mode'!M18)=0,\n           No_Matches_Message,\n           IF(\n              SUM(H18,M18)>=3,\n              Got_Many_Matches_Message,\n              IF(\n                 SUM(H18,M18)<3,\n                 Got_Some_Matches_Message,\n                 Enter_Number_Message))),\n        IF(\n           OR(D19=E19,D19=F19,D19=G19,E19=F19,E19=G19,F19=G19),\n           All_Digits_Different_Message,\n           IF(\n              H19=4,\n              Found_It_Regular_Speed_Message,\n              \"\"))))","v":""},7,null,null,null,null,"",0,0,0,0,"",0,0,0,0]
[null,{"$f":"IF(\n     OR(H19=4,H19=\"\",H19=\"\"),\n     \"\",\n     IF(\n        OR(D20=\"\",E20=\"\",F20=\"\",G20=\"\"),\n        IF(\n           SUM('One-Player Mode'!H19,'One-Player Mode'!M19)=0,\n           No_Matches_Message,\n           IF(\n              SUM(H19,M19)>=3,\n              Got_Many_Matches_Message,\n              IF(\n                 SUM(H19,M19)<3,\n                 Got_Some_Matches_Message,\n                 Enter_Number_Message))),\n        IF(\n           OR(D20=E20,D20=F20,D20=G20,E20=F20,E20=G20,F20=G20),\n           All_Digits_Different_Message,\n           IF(\n              H20=4,\n              Found_It_Regular_Speed_Message,\n              \"\"))))","v":""},8,null,null,null,null,"",0,0,0,0,"",0,0,0,0]
[null,{"$f":"IF(\n     OR(H20=4,H20=\"\",H20=\"\"),\n     \"\",\n     IF(\n        OR(D21=\"\",E21=\"\",F21=\"\",G21=\"\"),\n        IF(\n           SUM('One-Player Mode'!H20,'One-Player Mode'!M20)=0,\n           No_Matches_Message,\n           IF(\n              SUM(H20,M20)>=3,\n              Got_Many_Matches_Message,\n              IF(\n                 SUM(H20,M20)<3,\n                 Got_Some_Matches_Message,\n                 Enter_Number_Message))),\n        IF(\n           OR(D21=E21,D21=F21,D21=G21,E21=F21,E21=G21,F21=G21),\n           All_Digits_Different_Message,\n           IF(\n              H21=4,\n              Found_It_Regular_Speed_Message,\n              \"\"))))","v":""},9,null,null,null,null,"",0,0,0,0,"",0,0,0,0]
[null,{"$f":"IF(\n     OR(H21=4,H21=\"\",H21=\"\"),\n     \"\",\n     IF(\n        OR(D22=\"\",E22=\"\",F22=\"\",G22=\"\"),\n        IF(\n           SUM('One-Player Mode'!H21,'One-Player Mode'!M21)=0,\n           No_Matches_Message,\n           IF(\n              SUM(H21,M21)>=3,\n              Got_Many_Matches_Message,\n              IF(\n                 SUM(H21,M21)<3,\n                 Got_Some_Matches_Message,\n                 Enter_Number_Message))),\n        IF(\n           OR(D22=E22,D22=F22,D22=G22,E22=F22,E22=G22,F22=G22),\n           All_Digits_Different_Message,\n           IF(\n              H22=4,\n              Found_It_Regular_Speed_Message,\n              \"\"))))","v":""},10,null,null,null,null,"",0,0,0,0,"",0,0,0,0]
[null,{"$f":"IF(\n     OR(H22=4,H22=\"\",H22=\"\"),\n     \"\",\n     IF(\n        OR(D23=\"\",E23=\"\",F23=\"\",G23=\"\"),\n        IF(\n           SUM('One-Player Mode'!H22,'One-Player Mode'!M22)=0,\n           No_Matches_Message,\n           IF(\n              SUM(H22,M22)>=3,\n              Got_Many_Matches_Message,\n              IF(\n                 SUM(H22,M22)<3,\n                 Got_Some_Matches_Message,\n                 Enter_Number_Message))),\n        IF(\n           OR(D23=E23,D23=F23,D23=G23,E23=F23,E23=G23,F23=G23),\n           All_Digits_Different_Message,\n           IF(\n              H23=4,\n              Found_It_Regular_Speed_Messagee,\n              \"\"))))","v":""},11,null,null,null,null,"",0,0,0,0,"",0,0,0,0]
[null,{"$f":"IF(\n     OR(H23=4,H23=\"\",H23=\"\"),\n     \"\",\n     IF(\n        OR(D24=\"\",E24=\"\",F24=\"\",G24=\"\"),\n        IF(\n           SUM('One-Player Mode'!H23,'One-Player Mode'!M23)=0,\n           No_Matches_Message,\n           IF(\n              SUM(H23,M23)>=3,\n              Got_Many_Matches_Message,\n              IF(\n                 SUM(H23,M23)<3,\n                 Got_Some_Matches_Message,\n                 Enter_Number_Message))),\n        IF(\n           OR(D24=E24,D24=F24,D24=G24,E24=F24,E24=G24,F24=G24),\n           All_Digits_Different_Message,\n           IF(\n              H24=4,\n              Found_It_Regular_Speed_Message,\n              \"\"))))","v":""},12,null,null,null,null,"",0,0,0,0,"",0,0,0,0]

{"sheet":"Support info & formulas","index":1,"n_rows":14,"n_cols":12,"rows_kept":14,"cut":false,"hidden":true,"merged":[[2,3,2,6],[2,8,2,11]]}
["2) Support information & formulas"]
[]
[null,null,null,"Rank of available numbers",null,null,null,null,"Available numbers"]
["Case","Message",null,"Column 1","Column 2","Column 3","Column 4",null,"Column 1","Column 2","Column 3","Column 4"]
["Enter Number Message","Please, enter a four-digit guess.➡",null,{"$f":"IFERROR(\n      RANK(I5,I$5:I$14),\n     -1)","v":10},{"$f":"IFERROR(\n      RANK(J5,J$5:J$14),\n     -1)","v":9},8,7,null,0,{"$f":"IF(\n     I5=\"\",\n     \"\",\n     IF(\n        'One-Player Mode'!D$10='Support info & formulas'!$I5,\n        \"\",\n        'Support info & formulas'!$I5))","v":0},{"$f":"IF(\n     J5=\"\",\n     \"\",\n     IF(\n        'One-Player Mode'!E$10='Support info & formulas'!$I5,\n        \"\",\n        'Support info & formulas'!$I5))","v":0},{"$f":"IF(\n     K5=\"\",\n     \"\",\n     IF(\n        'One-Player Mode'!F$10='Support info & formulas'!$I5,\n        \"\",\n        'Support info & formulas'!$I5))","v":0}]
["All Digits Different Message","⛔All digits in your guess must be different. Please, fix it to continue.➡",null,{"$f":"IFERROR(\n      RANK(I6,I$5:I$14),\n     -1)","v":9},-1,-1,-1,null,1,{"$f":"IF(\n     I6=\"\",\n     \"\",\n     IF(\n        'One-Player Mode'!D$10='Support info & formulas'!$I6,\n        \"\",\n        'Support info & formulas'!$I6))","v":""},{"$f":"IF(\n     J6=\"\",\n     \"\",\n     IF(\n        'One-Player Mode'!E$10='Support info & formulas'!$I6,\n        \"\",\n        'Support info & formulas'!$I6))","v":""},{"$f":"IF(\n     K6=\"\",\n     \"\",\n     IF(\n        'One-Player Mode'!F$10='Support info & formulas'!$I6,\n        \"\",\n        'Support info & formulas'!$I6))","v":""}]
["No Matches Message","Opps, bad luck… or maybe not?💡 Think about it & try again!➡",null,8,8,7,6,null,2,{"$f":"IF(\n     I7=\"\",\n     \"\",\n     IF(\n        'One-Player Mode'!D$10='Support info & formulas'!$I7,\n        \"\",\n        'Support info & formulas'!$I7))","v":2},{"$f":"IF(\n     J7=\"\",\n     \"\",\n     IF(\n        'One-Player Mode'!E$10='Support info & formulas'!$I7,\n        \"\",\n        'Support info & formulas'!$I7))","v":2},{"$f":"IF(\n     K7=\"\",\n     \"\",\n     IF(\n        'One-Player Mode'!F$10='Support info & formulas'!$I7,\n        \"\",\n        'Support info & formulas'!$I7))","v":2}]
["Got Some Matches Message","You are getting closer. Keep trying!➡",null,7,7,-1,-1,null,3,{"$f":"IF(\n     I8=\"\",\n     \"\",\n     IF(\n        'One-Player Mode'!D$10='Support info & formulas'!$I8,\n        \"\",\n        'Support info & formulas'!$I8))","v":3},{"$f":"IF(\n     J8=\"\",\n     \"\",\n     IF(\n        'One-Player Mode'!E$10='Support info & formulas'!$I8,\n        \"\",\n        'Support info & formulas'!$I8))","v":""},{"$f":"IF(\n     K8=\"\",\n     \"\",\n     IF(\n        'One-Player Mode'!F$10='Support info & formulas'!$I8,\n        \"\",\n        'Support info & formulas'!$I8))","v":""}]
["Got Many Matches Message","You are so close! Keep going!➡",null,6,6,6,5,null,4,{"$f":"IF(\n     I9=\"\",\n     \"\",\n     IF(\n        'One-Player Mode'!D$10='Support info & formulas'!$I9,\n        \"\",\n        'Support info & formulas'!$I9))","v":4},{"$f":"IF(\n     J9=\"\",\n     \"\",\n     IF(\n        'One-Player Mode'!E$10='Support info & formulas'!$I9,\n        \"\",\n        'Support info & formulas'!$I9))","v":4},{"$f":"IF(\n     K9=\"\",\n     \"\",\n     IF(\n        'One-Player Mode'!F$10='Support info & formulas'!$I9,\n        \"\",\n        'Support info & formulas'!$I9))","v":4}]
["Found It Regular Speed Message","👏🏻You found it. Great Job! Now start again and do it in less turns.⬆",null,5,5,5,-1,null,5,{"$f":"IF(\n     I10=\"\",\n     \"\",\n     IF(\n        'One-Player Mode'!D$10='Support info & formulas'!$I10,\n        \"\",\n        'Support info & formulas'!$I10))","v":5},{"$f":"IF(\n     J10=\"\",\n     \"\",\n     IF(\n        'One-Player Mode'!E$10='Support info & formulas'!$I10,\n        \"\",\n        'Support info & formulas'!$I10))","v":5},{"$f":"IF(\n     K10=\"\",\n     \"\",\n     IF(\n        'One-Player Mode'!F$10='Support info & formulas'!$I10,\n        \"\",\n        'Support info & formulas'!$I10))","v":""}]
["Found It Fast Message","😮OMG You found it SO FAST! Start a new game and do it again.⬆",null,4,4,4,4,null,6,{"$f":"IF(\n     I11=\"\",\n     \"\",\n     IF(\n        'One-Player Mode'!D$10='Support info & formulas'!$I11,\n        \"\",\n        'Support info & formulas'!$I11))","v":6},{"$f":"IF(\n     J11=\"\",\n     \"\",\n     IF(\n        'One-Player Mode'!E$10='Support info & formulas'!$I11,\n        \"\",\n        'Support info & formulas'!$I11))","v":6},{"$f":"IF(\n     K11=\"\",\n     \"\",\n     IF(\n        'One-Player Mode'!F$10='Support info & formulas'!$I11,\n        \"\",\n        'Support info & formulas'!$I11))","v":6}]
[null,null,null,3,3,3,3,null,7,{"$f":"IF(\n     I12=\"\",\n     \"\",\n     IF(\n        'One-Player Mode'!D$10='Support info & formulas'!$I12,\n        \"\",\n        'Support info & formulas'!$I12))","v":7},{"$f":"IF(\n     J12=\"\",\n     \"\",\n     IF(\n        'One-Player Mode'!E$10='Support info & formulas'!$I12,\n        \"\",\n        'Support info & formulas'!$I12))","v":7},{"$f":"IF(\n     K12=\"\",\n     \"\",\n     IF(\n        'One-Player Mode'!F$10='Support info & formulas'!$I12,\n        \"\",\n        'Support info & formulas'!$I12))","v":7}]
[null,null,null,2,2,2,2,null,8,{"$f":"IF(\n     I13=\"\",\n     \"\",\n     IF(\n        'One-Player Mode'!D$10='Support info & formulas'!$I13,\n        \"\",\n        'Support info & formulas'!$I13))","v":8},{"$f":"IF(\n     J13=\"\",\n     \"\",\n     IF(\n        'One-Player Mode'!E$10='Support info & formulas'!$I13,\n        \"\",\n        'Support info & formulas'!$I13))","v":8},{"$f":"IF(\n     K13=\"\",\n     \"\",\n     IF(\n        'One-Player Mode'!F$10='Support info & formulas'!$I13,\n        \"\",\n        'Support info & formulas'!$I13))","v":8}]
[null,null,null,1,1,1,1,null,9,{"$f":"IF(\n     I14=\"\",\n     \"\",\n     IF(\n        'One-Player Mode'!D$10='Support info & formulas'!$I14,\n        \"\",\n        'Support info & formulas'!$I14))","v":9},{"$f":"IF(\n     J14=\"\",\n     \"\",\n     IF(\n        'One-Player Mode'!E$10='Support info & formulas'!$I14,\n        \"\",\n        'Support info & formulas'!$I14))","v":9},{"$f":"IF(\n     K14=\"\",\n     \"\",\n     IF(\n        'One-Player Mode'!F$10='Support info & formulas'!$I14,\n        \"\",\n        'Support info & formulas'!$I14))","v":9}]